Cogmind - Beta 15 X1 @@@ ROGUE MODE // 2024.11.11 @ 14:45:16 Player: Some Pennies Result: Destroyed by IY-47R(R) with Subdweller Beam Cannon Performance ------------- Evolutions (0) 0 Regions Visited (2) 400 Robots Destroyed (36) 180 Value Destroyed (975) 975 Prototype IDs (11) 220 Alien Tech Used (0) 0 Bonus (-38) -38 TOTAL SCORE: 1737 Bonus ------- Friendly Fire -38 Cogmind --------- Core Integrity 0/250 Matter 300/300 Energy 8/100 System Corruption 0% Temperature Cool (9) Movement Treading (560) Ox4 Location -10/Subcaves Parts ------- > --- POWER (1) -------- (None) > --- PROPULSION (2) --- Spiked Treads > --- UTILITY (2) ------ Cooling System Huge Storage Unit > --- WEAPON (2) ------- Subdweller Laser Subdweller Laser > --- INVENTORY (25) --- Light Nuclear Core Cargo Legs Subdweller Monowheel Cooling System Cooling System Medium Storage Unit Machine Analyzer Terrain Scanner Scrap Shield Hacking Suite Makeshift System Shield Medium Laser Subdweller Laser Subdweller Laser Subdweller Laser Subdweller Laser Beam Cannon Beam Cannon Assault Rifle Battle Rifle Heavy Battle Rifle Mining Laser Multitool Peak State ------------ > --- POWER ------------ Light Nuclear Core > --- PROPULSION ------- Light Treads Spiked Treads > --- UTILITY ---------- Cooling System Huge Storage Unit > --- WEAPON ----------- Subdweller Laser Subdweller Laser > --- INVENTORY -------- Light Nuclear Core Cargo Legs Subdweller Monowheel Cooling System Cooling System Medium Storage Unit Machine Analyzer Terrain Scanner Scrap Shield Hacking Suite Makeshift System Shield Medium Laser Subdweller Laser Subdweller Laser Subdweller Laser Subdweller Laser Beam Cannon Beam Cannon Assault Rifle Battle Rifle Heavy Battle Rifle Mining Laser [Rating: 19] Favorites ----------- Power Light Nuclear Core Engine Ion Engine Power Core Light Nuclear Core Propulsion Light Treads Treads Light Treads Utility Cooling System Device Cooling System Storage Huge Storage Unit Weapon Subdweller Laser Energy Gun Subdweller Laser Energy Cannon Beam Cannon Ballistic Gun Assault Rifle Special Weapon Mining Laser Build | -11 -10 -10 ------- Run | Yrd Mat Sub Slots Evolved . | . . . Power . | . . . Propulsion . | . . . Utility . | . . . Weapon . | . . . Parts Attached 26 | 8 9 9 Power 3 | 2 1 . Engine 2 | 2 . . Core 1 | . 1 . Reactor . | . . . Propulsion 5 | 2 1 2 Treads 5 | 2 1 2 Leg . | . . . Wheel . | . . . Hover . | . . . Flight . | . . . Utility 7 | 1 5 1 Device 4 | . 4 . Storage 3 | 1 1 1 Processor . | . . . Hackware . | . . . Protection . | . . . Artifact . | . . . Weapon 11 | 3 2 6 Energy Gun 5 | . . 5 Energy Cannon 1 | . 1 . Ballistic Gun 4 | 3 1 . Ballistic Cannon . | . . . Launcher . | . . . Special Weapon 1 | . . 1 Impact Weapon . | . . . Slashing Weapon . | . . . Piercing Weapon . | . . . Special Melee Weapon . | . . . Unidentified Prototypes . | . . . Parts Lost 4 | . . 4 Power 1 | . . 1 Propulsion 3 | . . 3 Utility . | . . . Weapon . | . . . Highest Loss Streak 2 | . . 2 To Critical Strikes . | . . . Average Backups 13 | 2 9 19 Power 1 | . 1 1 Propulsion 1 | 1 1 2 Utility 5 | . 3 6 Weapon 5 | . 2 8 Tool/Special . | . . . Unused Backups 20 | . 3 17 Power 2 | . 1 1 Propulsion 4 | . 2 2 Utility 7 | . . 7 Weapon 7 | . . 7 Tool/Special . | . . . Average Slot Usage (%) 99 | . 98 99 Engine 1 | . 2 . Core 12 | . 11 14 Treads 27 | . 27 27 Device 13 | . 12 14 Storage 14 | . 14 14 Energy Gun 12 | . . 25 Energy Cannon 7 | . 12 1 Ballistic Gun 8 | . 15 1 Peak Build Rating 19 | 6 12 19 Average Rating 13 | 5 10 17 On Entrance 5 | . 6 11 Naked Turns . | . . . Heaviest Build 95 | 13 22 95 Greatest Support 40 | 40 40 40 Greatest Overweight (x) 4 | . . 4 Average Overweight (x) . | . . 1 Largest Inventory Capacity 25 | 8 10 25 Average Capacity 16 | 7 9 24 Most Carried 25 | 5 10 25 Average Carried 14 | 2 9 20 Final Capacity 25 | 8 10 25 Final Carried 25 | 5 10 25 Class Distribution -------------------- 100% | Mutant Dominant Class ---------------- Mutant | -10/Materials Mutant | -10/Subcaves Resources | -11 -10 -10 ----------- Run | Yrd Mat Sub Matter Collected 849 | 328 423 98 Remotely . | . . . Salvage Created 1456 | 103 942 411 Parts 83 | 3 56 24 Haulers Intercepted 2 | . 2 . Recyclers Shooed 2 | . 2 . Parts Field Recycled . | . . . Retrieved Matter . | . . . Parts Self-Destructed 15 | . . 15 Prevented . | . . . Kills | -11 -10 -10 ------- Run | Yrd Mat Sub Combat Hostiles Destroyed 25 | . 17 8 Guns 14 | . 6 8 Cannons 11 | . 11 . Classes Destroyed 9 | 2 5 2 Tunneler 2 | 1 1 . Hauler 2 | . 2 . Recycler 3 | 1 2 . Operator 2 | . 2 . Watcher 2 | . 2 . Swarmer 3 | . 3 . Grunt 14 | . 14 . Artisan 2 | . . 2 Subdweller 8 | . . 8 Best Kill Streak 3 | 1 3 2 Combat Bots Only 3 | . 3 2 Max Kills in Single Turn 1 | 1 1 1 Gunslinging . | . . . Exploded . | . . . Melee . | . . . Uniques/NPCs Destroyed . | . . . Combat | -11 -10 -10 -------- Run | Yrd Mat Sub Hostile Shots Fired 121 | . 63 58 Missed 36 | . 19 17 Damage Taken 1418 | . 541 877 Core 261 | . 50 211 Absorbed by Shields . | . . . Regen/Repaired (Parts) 85 | . 85 . Core Remaining (%) 100 | 100 . . Volleys Fired 163 | 12 91 60 Largest 2 | 2 2 2 Hottest 120 | 40 80 120 Shots Fired 316 | 24 182 110 Gun 233 | 24 104 105 Cannon 82 | . 78 4 Launcher . | . . . Special 1 | . . 1 Kinetic 129 | 24 104 1 Thermal 187 | . 78 109 Explosive . | . . . Electromagnetic . | . . . Robot Hit Streak 11 | 5 9 11 Robot Miss Streak 7 | 5 7 2 Penetration Max . | . . . Secondary Targets . | . . . Shots Hit Robots 178 | 13 103 62 Core Hits 62 | 4 40 18 Critical Kills 1 | . 1 . Critical Parts Destroyed 1 | . 1 . Critical Strikes 4 | . 2 2 Destroy 4 | . 2 2 Melee Attacks . | . . . Impact . | . . . Slashing . | . . . Piercing . | . . . Sneak Attacks . | . . . Combat Hostiles . | . . . Follow-up Attacks . | . . . Damage Inflicted 2928 | 124 1528 1276 Guns 2096 | 124 714 1258 Cannons 825 | . 807 18 Explosions . | . . . Melee . | . . . Ramming 7 | . 7 . Kinetic 838 | 124 714 . Thermal 2083 | . 807 1276 Explosive . | . . . Electromagnetic . | . . . Impact . | . . . Slashing . | . . . Piercing . | . . . Highest Corruption . | . . . Average Corruption . | . . . Corruption Purged . | . . . Corruption Blocked . | . . . Overload Shots . | . . . Overflow Damage . | . . . Projectiles . | . . . Explosions . | . . . Melee . | . . . Knockbacks . | . . . Impact . | . . . Kinetic . | . . . Secondary . | . . . Self-Inflicted Damage . | . . . Shots . | . . . Rammed 3 | . 3 . Targets Rammed 3 | . 3 . Kicked . | . . . Crushed . | . . . Highest Temperature 4 | . 4 . Average Temperature 3 | . 3 . Received Heat Transfer 348 | . 234 114 Siege Activations . | . . . Martial Activations . | . . . Shielding Activations . | . . . Robots Disrupted . | . . . Combat Hostiles . | . . . Robots Corrupted . | . . . Combat Hostiles . | . . . Parts Fried . | . . . Impact Corruptions . | . . . Robots Melted . | . . . Combat Hostiles . | . . . Parts Melted 4 | . 2 2 Heat Transferred 3227 | . 1665 1562 Parts Sabotaged . | . . . Parts Stolen . | . . . Parts Stripped . | . . . Power Chain Reactions . | . . . Alert | -11 -10 -10 ------- Run | Yrd Mat Sub Maximum Alert Level 1 | . 1 . Low Security (%) 97 | 100 97 . Level 1 2 | . 2 . Level 2 . | . . . Level 3 . | . . . Level 4 . | . . . Level 5 . | . . . High Security . | . . . Max Security . | . . . Peak Influence 222 | 5 222 . Initial . | . . . Average 68 | . 73 . Influence Increases 649 | 10 639 . Destroy 0b10 Robot/C 340 | . 340 . Destroy 0b10 Robot/NC 55 | 10 45 . Destroy Leader 88 | . 88 . Successful Hack 29 | . 29 . Select Force Hacks 60 | . 60 . Disable Machine 15 | . 15 . Destroy Structure 2 | . 2 . Lose Combat Pursuer 60 | . 60 . Influence Decreases 545 | 10 423 112 Time Decay 545 | 10 423 112 Squads Dispatched 4 | . 4 . Investigation 2 | . 2 . Extermination . | . . . Reinforcement 2 | . 2 . Assault . | . . . Garrison . | . . . Intercept . | . . . Searches Triggered . | . . . Construction Impeded . | . . . Haulers Reinforced . | . . . Active Scanning Responses . | . . . Cargo Convoy Interrupts . | . . . Stealth | -11 -10 -10 --------- Run | Yrd Mat Sub Distress Signals . | . . . Communications Jammed . | . . . Distress Signals . | . . . Times Spotted 41 | . 32 9 Peak Tracking Total 3 | . 3 2 Tactical Retreats 3 | . 3 . Traps | -11 -10 -10 ------- Run | Yrd Mat Sub Traps Triggered 4 | . 4 . Indirectly . | . . . Trap Hack Attempts . | . . . Triggered . | . . . Disarmed . | . . . Reprogrammed . | . . . Reused . | . . . Traps Extracted . | . . . Installed . | . . . Triggered . | . . . Machines | -11 -10 -10 ---------- Run | Yrd Mat Sub Machines Disabled 2 | . 1 1 Max in Single Turn 1 | . 1 1 Machines Repaired . | . . . Machines Dismantled . | . . . Machines Sabotaged . | . . . Overloaded Fab Kills . | . . . Hacking | -11 -10 -10 --------- Run | Yrd Mat Sub Machines Accessed 11 | . 9 2 Terminals 6 | . 6 . Fabricators . | . . . Repair Stations 1 | . 1 . Recycling Units 2 | . 2 . Scanalyzers . | . . . Garrison Access . | . . . Total Hacks 30 | . 25 5 Successful 20 | . 15 5 Failed 10 | . 10 . Catastrophic . | . . . Database Lockouts . | . . . Manual 20 | . 20 . Terminals 20 | . 20 . Fabricators . | . . . Repair Stations 2 | . 2 . Recycling Units 3 | . 3 . Scanalyzers . | . . . Garrison Access . | . . . Terminal Hacks 10 | . 5 5 Record 4 | . . 4 Robot Analysis 3 | . 3 . Terminal Index 1 | . 1 . Alert Level 1 | . 1 . Derelict Proto ID Bank 1 | . . 1 Fabricator Hacks . | . . . Repair Station Hacks 2 | . 2 . Scan Component 1 | . 1 . Repair 1 | . 1 . Recycling Unit Hacks 1 | . 1 . Retrieve Components 1 | . 1 . Scanalyzer . | . . . Garrison Access Hacks . | . . . Unauthorized Hacks 7 | . 7 . Terminals 5 | . 5 . Botnet 1 | . 1 . Skim 4 | . 4 . Fabricators . | . . . Repair Stations . | . . . Recycling Units 2 | . 2 . Tunnel 2 | . 2 . Scanalyzers . | . . . Garrison Access . | . . . Data Cores Recovered . | . . . Used . | . . . Hacking Detections 8 | . 8 . Full Trace Events . | . . . Feedback Events . | . . . Feedback Blocked . | . . . Robot Schematics Acquired . | . . . Robots Built . | . . . Authchips . | . . . Time . | . . . Total Robot Build Rating . | . . . Part Schematics Acquired . | . . . Parts Built . | . . . Authchips . | . . . Time . | . . . Total Part Build Rating . | . . . Parts Repaired 1 | . 1 . Time 26 | . 26 . Parts Recycled . | . . . Recycled Matter . | . . . Retrieved Matter . | . . . Retrieved Components 10 | . 10 . Parts Scanalyzed . | . . . Part Schematics Acquired . | . . . Parts Damaged . | . . . Bothacking | -11 -10 -10 ------------ Run | Yrd Mat Sub Used RIF Installer . | . . . Robots Hacked . | . . . Non-combat . | . . . Combat . | . . . Robot Hacks Applied . | . . . Relay Couplers Released . | . . . Fabnet Peak Effective % . | . . . Robots Rewired . | . . . Allies Hacked . | . . . Hacks Repelled . | . . . Allies | -11 -10 -10 -------- Run | Yrd Mat Sub Total Allies . | . . . Largest Group . | . . . Highest-Rated Group . | . . . Highest-Rated Ally . | . . . Total Orders . | . . . Ally Attacks . | . . . Total Damage . | . . . Kills . | . . . Allies Corrupted . | . . . Allies Melted . | . . . Intel | -11 -10 -10 ------- Run | Yrd Mat Sub Active Infowar (turns) . | . . . Robot Analysis Total 3 | . 3 . Derelict Logs Recovered . | . . . Drone Launches . | . . . Drone Recoveries . | . . . Exploration | -11 -10 -10 ------------- Run | Yrd Mat Sub Turns Passed 3938 | 137 1937 1864 Spaces Moved 1544 | 57 966 521 Core 2 | 2 . . Treads 1542 | 55 966 521 Legs . | . . . Wheels . | . . . Hover . | . . . Flight . | . . . Fastest Speed 50 | 50 160 160 Average Speed 211 | 156 160 313 Slowest Speed 480 | 160 160 480 Overloaded Moves . | . . . Propulsion Burnouts . | . . . Robots Hopped . | . . . Cave-ins Triggered . | . . . Exploration Rate (%) 44 | 5 98 29 Regions Visited 2 Branch Regions 1 Pre-discovered Areas 3 | . 2 1 Known Exits Taken . | . . . Unknown Exits Taken 2 | 1 1 . Scrap Searched 15 | . . 15 Spaces Dug . | . . . Terrain Destroyed . | . . . Melee . | . . . Projectile . | . . . AOE . | . . . Terrain Rammed . | . . . Walls Destroyed . | . . . Machines Disabled . | . . . Actions | -11 -10 -10 --------- Run | Yrd Mat Sub Total 1898 | 80 1181 637 Wait 110 | . 81 29 Move 1542 | 56 965 521 Hop . | . . . Pick Up 31 | 4 12 15 Fast Attach 13 | 6 7 . Attach 2 | . . 2 Detach . | . . . Swap 17 | 2 7 8 Drop 17 | . 15 2 Fire 163 | 12 91 60 Melee . | . . . Ram . | . . . Kick . | . . . Crush 3 | . 3 . Escape Stasis . | . . . Rewire . | . . . Trap . | . . . Miscellaneous . | . . . Route ------- -11/Scrapyard -10/Materials (discovered 6 exits: [*Mat x3] / [*Min x2] / *Sub) -10/Subcaves (discovered 1 exit: Rec) History --------- Turn | Location | Event 13 | -11/Scrapyard | Discovered new exit (range 14) 138 | -11/Scrapyard | Entered Materials 304 | -10/Materials | Build established: Mutant 678 | -10/Materials | Discovered new exit (range 16) 939 | -10/Materials | Repaired Lgt. Treads 1066 | -10/Materials | Discovered new exit (range 13) 1399 | -10/Materials | Discovered new exit (range 9) 1486 | -10/Materials | Discovered new exit (range 8) 1588 | -10/Materials | Discovered new exit (range 8) 2064 | -10/Materials | Discovered new exit (range 6) 2075 | -10/Materials | Entered Subcaves 2076 | -10/Subcaves | Approached by a straggling Scientist 2135 | -10/Subcaves | Visited 4L-MR0's lab 2165 | -10/Subcaves | Found Cargo Legs 2390 | -10/Subcaves | Visited Clippyterm 2400 | -10/Subcaves | Identified exit to Recycling 2400 | -10/Subcaves | Learned location of Section 7 (-3) 2443 | -10/Subcaves | Shifting Twisted Machinery released Scrap Shield 2501 | -10/Subcaves | Shifting Twisted Machinery released Sub. Laser 2557 | -10/Subcaves | A swath of the cavern ceiling suddenly collapsed 2758 | -10/Subcaves | Core integrity fell below 50% 3231 | -10/Subcaves | Core integrity fell below 20% 3672 | -10/Subcaves | Disturbed a concealed Subdweller 3939 | -10/Subcaves | Destroyed by IY-47R(R) with Subdweller Beam Cannon Last Messages --------------- 03705_ Found 54 Matter. 03712_ Searching scrap... 03712_ Found Hvy. Riot Gun. 03712_ Found Sub. Monowheel. 03712_ Found 59 Matter. 03754_ Subatomizers dissect the Disposable Heat Sink. 03784_ Subatomizers dissect the Hvy. Riot Gun. 03813_ Subatomizers dissect the Sub. Monowheel. 03885_ 96-BAO(u) deconstructs Twisted Machinery. 03903_ 96-BAO(u) cries out in pain. 03903_ 96-BAO(u) destroyed. 03909_ Dropped Broken Sub. Laser. 03910_ Acquired Multitool. 03930_ IY-47R(R) angrily emerges from the Twisted Machinery. 03930_ IY-47R(R): "LEAVESUB!" 03931_ Lgt. Nuclear Core destroyed. 03933_ Lgt. Treads destroyed. Map ----- +----------------------------------------------------+ | ????????????????????????????????????????? " """ ?? | | ????????????????????????????????????????# """" ??? | | ???????????????????????????????????????##""" #??? | | ????????????????????????????????????????""" #???? | | ????????????????????????????????????????# #???? | | ??????????????????????????????????????### #???? | | ?????????????????????????????????????## #????? | | ????????????????????????????????????## ##???? | | ????????????????????????????????????#" ##??? | | ????????????????????????????######### #### | | ???????????????????????????## " "" ## | | ???????????????????????????# "" ! | | ???????????????????????????### "" ### | | ?????????????????????????????##"" #### # | | ?????????????????????????##???## ""#### ## | | ?????????????????????????#"###?### " ### #? | | ?????????????????????????# ###?# ## #? | | ?????????????????????????# " ### ## #? | | ??????????????????????????# ## #### ##? | | ??????????????????????????# #??# #?? | | ??????????????????????????# " [ #??# ?? | | ??????????????????????????#""*%= ##??###%#? | | ??????????????????????????# #### ##??????# ? | | ?????????????????????????##R #?########????????## | | ????????????????????????## ##??????????????????? | | ????????????????????????#@ "##???????????????????? | | ????????????????????? ""#????????????????????? | | ????????????????? "##????????????????????? | | ????????????? # "###?????????????????????? | | ???????????? #" ?# ????????????????????????? | | ?????????????##??#???# ????????????????????????? | | ?????????????????????####????????????????????????? | | ?????????????????????????????????????????????????? | | ?????????????????????????????????????????????????? | | ?????????????????????????????????????????????????? | | ?????????????????????????????????????????????????? | | ?????????????????????????????????????????????????? | | ?????????????????????????????????????????????????? | | ?????????????????????????????????????????????????? | | ?????????????????????????????????????????????????? | | ?????????????????????????????????????????????????? | | ?????????????????????????????????????????????????? | | ?????????????????????????????????????????????????? | | ?????????????????????????????????????????????????? | | ?????????????????????????????????????????????????? | | ?????????????????????????????????????????????????? | | ?????????????????????????????????????????????????? | | ?????????????????????????????????????????????????? | | ?????????????????????????????????????????????????? | | ?????????????????????????????????????????????????? | +----------------------------------------------------+ Best States ------------- Heat Dissipation 47 Energy Generation 14 Energy Capacity 250 Matter Stores 300 Matter Capacity 300 Sight Range 16 Terrain Scan Density 10 Evasion (%) 40 Recoil Reduction 2 Item Schematics ----------------- None Robot Schematics ------------------ None Fabricated ------------ Nothing Repaired ---------- Lgt. Treads | 39% | -10/Materials Alien Tech Used ----------------- None Achievements -------------- None Challenges ------------ None Game ------ Seed ResetReactiveCleaver Manual? 0 Play Time 00:18:45 Cumulative 448.5 hours Start 2024.11.11 @ 14:29:07 End 2024.11.11 @ 14:45:16 Sessions 1 Manual Loads 0 Difficulty Rogue Special Mode None Game No. 303 Rogue 298 Adventurer 5 Explorer 0 Win Type - Total 11 Types 5/0/5/0/0/0/1/0/0 Lore% 79 Gallery% 89 Achievement% 75 Wizard Run 0 Options --------- Layout 2 ASCII 0 Keyboard 0 Movement Mouse Keybinds 0 Fullscreen 2 Font 24/Smallcaps Map View 50x44 Zoom Use 0% Tactical HUD 1 Map Filters NONE Filters NONE Steam 1 RUN: 88a17620-c918-4a36-b599-732e5acb1a3e